[Event "Fredericia IM 2019"]
[Site "Fredericia"]
[Date "2019.05.30"]
[Round "3.4"]
[White "Easwaralingam, Adesh"]
[Black "Vasli, Aref"]
[Result "0-1"]
[ECO "C84"]
[WhiteElo "2123"]
[BlackElo "2346"]
[Annotator "ChessBase"]
[PlyCount "78"]
[EventDate "2019.05.29"]
[EventType "tourn"]
[EventCountry "DEN"]
[SourceTitle "playchess.com"]
[Source "ChessBase"]
[SourceQuality "1"]
[TimeControl "40/5400+30:1800+30"]

1. e4 {[%emt 0:00:00]} e5 {[%emt 0:00:00]} 2. Nf3 {[%emt 0:00:00]} Nc6 {[%emt 0:00:00]} 3. Bb5 {[%emt 0:00:00]} a6 {[%emt 0:00:00]} 4. Ba4 {[%emt 0:00:00]} Nf6 {[%emt 0:00:00]} 5. O-O {[%emt 0:00:20]} Be7 {[%emt 0:00:05]} 6. d3 {[%emt 0:00:09]} b5 {[%emt 0:00:34]} 7. Bb3 {[%emt 0:00:04]} d6 {[%emt 0:00:07]} 8. a3 {[%emt 0:00:10]} O-O {[%emt 0:00:34]} 9. Nc3 {[%emt 0:00:05]} Nb8 {[%emt 0:09:14]} 10. Re1 {[%emt 0:01:03]} c6 {[%emt 0:04:01]} 11. Ne2 {[%emt 0:02:15]} Nh5 {[%emt 0:07:48]} 12. Ng3 {[%emt 0:16:30]} Nxg3 {[%emt 0:00:46]} 13. hxg3 {[%emt 0:02:43]} Bg4 {[%emt 0:01:42]} 14. Qe2 {[%emt 0:01:33]} Nd7 {[%emt 0:00:29]} 15. c3 {[%emt 0:04:19]} Nc5 {[%emt 0:07:34]} 16. Ba2 {[%emt 0:04:44]} Bf6 {[%emt 0:02:17]} 17. Qe3 {[%emt 0:04:19]} Re8 {[%emt 0:08:05]} 18. Nh2 {[%emt 0:03:11]} Bc8 {[%emt 0:18:42]} 19. f4 {[%emt 0:03:44]} Qe7 {[%emt 0:00:10]} 20. Nf3 {[%emt 0:03:12]} a5 {[%emt 0:05:13]} 21. f5 {[%emt 0:10:27]} a4 {[%emt 0:05:41]} 22. Nh2 {[%emt 0:04:31]} Qa7 {[%emt 0:10:43]} 23. Kh1 {[%emt 0:06:11]} d5 {[%emt 0:04:34]} 24. g4 {[%emt 0:02:51]} Bh4 {[%emt 0:04:06]} 25. g3 {[%emt 0:05:24]} Bd8 {[%emt 0:01:09]} 26. Nf3 {[%emt 0:06:04]} Bb6 {[%emt 0:01:26]} 27. Qe2 {[%emt 0:00:05]} Ba6 {[%emt 0:01:55]} 28. Rd1 {[%emt 0:07:58]} b4 {[%emt 0:02:05]} 29. axb4 {[%emt 0:08:49]} Nxe4 {[%emt 0:00:07]} 30. Kg2 {[%emt 0:00:02]} Nf2 {[%emt 0:00:11]} 31. c4 {[%emt 0:00:59]} Nxd1 {[%emt 0:00:21]} 32. Qxd1 {[%emt 0:00:04]} e4 {[%emt 0:00:55]} 33. dxe4 {[%emt 0:01:20]} dxe4 {[%emt 0:00:28]} 34. Ng5 {[%emt 0:01:24]} c5 {[%emt 0:03:53]} 35. Be3 {[%emt 0:01:45]} h6 {[%emt 0:00:46]} 36. Nh3 {[%emt 0:01:05]} cxb4 {[%emt 0:00:29]} 37. c5 {[%emt 0:00:36]} Bxc5 {[%emt 0:00:23]} 38. Bxc5 {[%emt 0:00:07]} Qxc5 {[%emt 0:00:08]} 39. Rc1 {[%emt 0:00:12]} Qe5 {[%emt 0:01:02]} 0-1

[Event "Fredericia IM 2019"]
[Site "Fredericia"]
[Date "2019.05.30"]
[Round "3.5"]
[White "Olsen, Filip Boe"]
[Black "Antonsen, Mikkel"]
[Result "1/2-1/2"]
[ECO "D93"]
[WhiteElo "2394"]
[BlackElo "2423"]
[Annotator "ChessBase"]
[PlyCount "85"]
[EventDate "2019.05.29"]
[EventType "tourn"]
[EventCountry "DEN"]
[SourceTitle "playchess.com"]
[Source "ChessBase"]
[SourceQuality "1"]
[TimeControl "40/5400+30:1800+30"]

1. d4 {[%emt 0:00:00]} Nf6 {[%emt 0:00:34]} 2. Nf3 {[%emt 0:00:14]} g6 {[%emt 0:00:29]} 3. c4 {[%emt 0:00:09]} Bg7 {[%emt 0:00:05]} 4. Nc3 {[%emt 0:00:08]} d5 {[%emt 0:00:04]} 5. Bf4 {[%emt 0:02:23]} O-O {[%emt 0:00:46]} 6. e3 {[%emt 0:00:21]} c5 {[%emt 0:00:14]} 7. dxc5 {[%emt 0:00:09]} Ne4 {[%emt 0:00:32]} 8. Be5 {[%emt 0:17:38]} Bxe5 {[%emt 0:00:29]} 9. Nxe5 {[%emt 0:00:28]} Nxc3 {[%emt 0:00:07]} 10. bxc3 {[%emt 0:00:08]} Qa5 {[%emt 0:02:22]} 11. Qb3 {[%emt 0:05:18]} Nc6 {[%emt 0:02:28]} 12. Nxc6 {[%emt 0:06:03]} bxc6 {[%emt 0:00:29]} 13. Qb4 {[%emt 0:02:19]} Qc7 {[%emt 0:00:17]} 14. Be2 {[%emt 0:02:30]} a5 {[%emt 0:10:52]} 15. Qb6 {[%emt 0:05:38]} Qe5 {[%emt 0:00:19]} 16. O-O {[%emt 0:00:32]} Ba6 {[%emt 0:00:02]} 17. Rfe1 {[%emt 0:08:01]} Bxc4 {[%emt 0:02:16]} 18. Bxc4 {[%emt 0:04:04]} dxc4 {[%emt 0:00:09]} 19. Red1 {[%emt 0:04:56]} Qxc3 {[%emt 0:06:15]} 20. Qxc6 {[%emt 0:04:00]} Rad8 {[%emt 0:08:10]} 21. Rdc1 {[%emt 0:08:57]} Qe5 {[%emt 0:02:27]} 22. Qb5 {[%emt 0:03:19]} c3 {[%emt 0:00:52]} 23. Qc4 {[%emt 0:01:27]} Rd2 {[%emt 0:03:29]} 24. Rxc3 {[%emt 0:02:43]} Rfd8 {[%emt 0:00:02]} 25. Rf1 {[%emt 0:03:08]} Rxa2 {[%emt 0:01:28]} 26. c6 {[%emt 0:02:39]} Ra4 {[%emt 0:03:40]} 27. c7 {[%emt 0:02:01]} Rc8 {[%emt 0:00:04]} 28. Qc6 {[%emt 0:02:23]} Rb4 {[%emt 0:01:45]} 29. Rd1 {[%emt 0:02:35]} Kg7 {[%emt 0:00:05]} 30. g3 {[%emt 0:01:04]} Rb6 {[%emt 0:04:49]} 31. Qc5 {[%emt 0:05:50]} Qxc5 {[%emt 0:00:53]} 32. Rxc5 {[%emt 0:00:01]} Rb7 {[%emt 0:00:10]} 33. Rd7 {[%emt 0:00:49]} e6 {[%emt 0:00:59]} 34. Rc4 {[%emt 0:01:28]} Rb4 {[%emt 0:01:29]} 35. Rc3 {[%emt 0:00:37]} Rb7 {[%emt 0:00:10]} 36. e4 {[%emt 0:00:50]} Kf6 {[%emt 0:03:15]} 37. Rc5 {[%emt 0:01:39]} a4 {[%emt 0:00:56]} 38. e5+ {[%emt 0:00:11]} Kg7 {[%emt 0:00:15]} 39. Rc3 {[%emt 0:00:59]} a3 {[%emt 0:00:24]} 40. Rxa3 {[%emt 0:01:36]} Rbxc7 {[%emt 0:00:24]} 41. Rxc7 {[%emt 0:30:14]} Rxc7 {[%emt 0:30:03]} 42. Kg2 {[%emt 0:00:33]} g5 {[%emt 0:00:50]} 43. g4 {[%emt 0:00:00]} 1/2-1/2

[Event "Fredericia IM 2019"]
[Site "Fredericia"]
[Date "2019.05.31"]
[Round "4.5"]
[White "Jacobsen, Mikkel Manosri"]
[Black "Antonsen, Mikkel"]
[Result "1-0"]
[ECO "D27"]
[WhiteElo "2319"]
[BlackElo "2423"]
[Annotator "RC"]
[PlyCount "49"]
[EventDate "2019.05.29"]
[EventType "tourn"]
[EventCountry "DEN"]
[SourceTitle "playchess.com"]
[Source "ChessBase"]
[SourceQuality "1"]
[TimeControl "40/5400+30:1800+30"]

1. d4 {[%emt 0:00:00]} d5 {[%emt 0:01:12]} 2. c4 {[%emt 0:00:00]} e6 {[%emt 0:00:10]} 3. Nf3 {[%emt 0:00:00]} Nf6 {[%emt 0:00:07]} 4. e3 {[%emt 0:00:02]} dxc4 {[%emt 0:08:14]} 5. Bxc4 {[%emt 0:00:54]} c5 {[%emt 0:00:09]} 6. O-O {[%emt 0:00:18]} a6 {[%emt 0:00:09]} 7. a4 {[%emt 0:00:05]} Nc6 {[%emt 0:03:06]} 8. Qe2 {[%emt 0:01:09]} cxd4 {[%emt 0:00:23]} 9. Rd1 {[%emt 0:00:12]} Be7 {[%emt 0:00:15]} 10. exd4 {[%emt 0:00:27]} O-O {[%emt 0:00:06]} 11. Nc3 {[%emt 0:00:05]} Nb4 {[%emt 0:00:16]} 12. Ne5 {[%emt 0:03:01]} Nbd5 {[%emt 0:08:06]} 13. Rd3 {[%emt 0:01:34]} Re8 {[%emt 0:04:23]} 14. Rg3 {[%emt 0:05:11]} Bf8 {[%emt 0:03:19]} 15. Bg5 {[%emt 0:01:06]} Qb6 {[%emt 0:08:37]} 16. Bxd5 {[%emt 0:05:32]} Nxd5 {[%emt 0:15:27]} 17. Nxf7 {[%emt 0:01:43]} Qxd4 {[%emt 0:03:14]} 18. Nh6+ {[%emt 0:09:10]} Kh8 {[%emt 0:00:27]} 19. Nxd5 {[%emt 0:00:09]} Qxd5 {[%emt 0:01:58]} 20. Rd1 {[%emt 0:00:17]} Qc6 {[%emt 0:02:24]} 21. Nf7+ {[%emt 0:01:37]} Kg8 {[%emt 0:00:03]} 22. Ne5 {[%emt 0:04:48]} Qc7 {[%emt 0:10:44]} 23. Qh5 {[%emt 0:03:20]} Re7 {[%emt 0:04:46]} 24. Bxe7 {[%emt 0:00:41]} Qxe7 {[%emt 0:00:08]} 25. Rf3 {[%emt 0:01:18]} 1-0

[Event "Fredericia IM 2019"]
[Site "Fredericia"]
[Date "2019.05.31"]
[Round "5.1"]
[White "Olsen, Filip Boe"]
[Black "Vasli, Aref"]
[Result "0-1"]
[ECO "E71"]
[WhiteElo "2394"]
[BlackElo "2346"]
[Annotator "ChessBase"]
[PlyCount "70"]
[EventDate "2019.05.29"]
[EventType "tourn"]
[EventCountry "DEN"]
[SourceTitle "playchess.com"]
[Source "ChessBase"]
[SourceQuality "1"]
[TimeControl "40/5400+30:1800+30"]

1. d4 {[%emt 0:00:00]} Nf6 {[%emt 0:00:00]} 2. c4 {[%emt 0:00:00]} g6 {[%emt 0:00:00]} 3. Nc3 {[%emt 0:00:00]} Bg7 {[%emt 0:00:00]} 4. e4 {[%emt 0:00:00]} d6 {[%emt 0:00:00]} 5. h3 {[%emt 0:00:47]} O-O {[%emt 0:00:05]} 6. Be3 {[%emt 0:00:08]} c5 {[%emt 0:01:10]} 7. Nf3 {[%emt 0:00:24]} cxd4 {[%emt 0:06:02]} 8. Nxd4 {[%emt 0:00:21]} b6 {[%emt 0:00:31]} 9. g3 {[%emt 0:04:00]} Bb7 {[%emt 0:02:27]} 10. Bg2 {[%emt 0:00:38]} Nbd7 {[%emt 0:02:09]} 11. O-O {[%emt 0:01:45]} Ne8 {[%emt 0:25:13]} 12. Rc1 {[%emt 0:05:12]} a6 {[%emt 0:00:27]} 13. Qd2 {[%emt 0:02:02]} Rc8 {[%emt 0:00:35]} 14. b3 {[%emt 0:01:21]} e6 {[%emt 0:14:03]} 15. Rfd1 {[%emt 0:07:09]} Qc7 {[%emt 0:03:49]} 16. Nde2 {[%emt 0:10:44]} Qb8 {[%emt 0:01:56]} 17. Na4 {[%emt 0:18:26]} Bc6 {[%emt 0:07:28]} 18. Nac3 {[%emt 0:05:58]} Qa8 {[%emt 0:04:46]} 19. Nd4 {[%emt 0:04:42]} Bb7 {[%emt 0:00:32]} 20. Qe2 {[%emt 0:01:35]} Nef6 {[%emt 0:03:35]} 21. f3 {[%emt 0:01:33]} d5 {[%emt 0:02:38]} 22. cxd5 {[%emt 0:06:30]} exd5 {[%emt 0:00:10]} 23. Nxd5 {[%emt 0:02:03]} Nxd5 {[%emt 0:00:31]} 24. exd5 {[%emt 0:00:37]} Bxd5 {[%emt 0:00:12]} 25. Nc2 {[%emt 0:03:34]} Rfe8 {[%emt 0:07:53]} 26. Qf2 {[%emt 0:03:38]} Ne5 {[%emt 0:05:27]} 27. f4 {[%emt 0:02:15]} Bxg2 {[%emt 0:00:53]} 28. Qxg2 {[%emt 0:00:17]} Nf3+ {[%emt 0:03:07]} 29. Kf2 {[%emt 0:01:15]} Bb2 {[%emt 0:01:09]} 30. Nb4 {[%emt 0:05:48]} Bxc1 {[%emt 0:00:30]} 31. Bxc1 {[%emt 0:00:26]} Qe4 {[%emt 0:00:32]} 32. Qxf3 {[%emt 0:00:30]} Qxb4 {[%emt 0:00:19]} 33. Qd3 {[%emt 0:00:50]} Qc5+ {[%emt 0:01:21]} 34. Be3 {[%emt 0:00:39]} Qc2+ {[%emt 0:00:14]} 35. Kf3 {[%emt 0:00:53]} Rxe3+ {[%emt 0:00:13]} 0-1

[Event "Fredericia IM 2019"]
[Site "Fredericia"]
[Date "2019.05.31"]
[Round "5.2"]
[White "Sorensen, Hampus"]
[Black "Devereaux, Maxim L"]
[Result "1-0"]
[ECO "D30"]
[WhiteElo "2343"]
[BlackElo "2342"]
[Annotator "ChessBase"]
[PlyCount "133"]
[EventDate "2019.05.29"]
[EventType "tourn"]
[EventCountry "DEN"]
[SourceTitle "playchess.com"]
[Source "ChessBase"]
[SourceQuality "1"]
[TimeControl "40/5400+30:1800+30"]

1. d4 {[%emt 0:00:00]} Nf6 {[%emt 0:00:00]} 2. c4 {[%emt 0:00:02]} e6 {[%emt 0:00:06]} 3. Nf3 {[%emt 0:01:00]} d5 {[%emt 0:00:15]} 4. Bg5 {[%emt 0:00:44]} h6 {[%emt 0:00:44]} 5. Bxf6 {[%emt 0:00:41]} Qxf6 {[%emt 0:00:13]} 6. g3 {[%emt 0:02:46]} Bb4+ {[%emt 0:03:17]} 7. Nbd2 {[%emt 0:04:06]} c5 {[%emt 0:04:00]} 8. cxd5 {[%emt 0:05:07]} exd5 {[%emt 0:00:48]} 9. a3 {[%emt 0:01:24]} Bxd2+ {[%emt 0:09:36]} 10. Qxd2 {[%emt 0:00:11]} c4 {[%emt 0:02:11]} 11. Bg2 {[%emt 0:02:21]} Nc6 {[%emt 0:01:56]} 12. O-O {[%emt 0:03:21]} O-O {[%emt 0:00:42]} 13. Rad1 {[%emt 0:04:50]} Be6 {[%emt 0:04:02]} 14. Qc3 {[%emt 0:05:18]} Rfd8 {[%emt 0:02:49]} 15. Ne5 {[%emt 0:02:03]} Qe7 {[%emt 0:08:27]} 16. Rfe1 {[%emt 0:07:04]} Nxe5 {[%emt 0:09:32]} 17. dxe5 {[%emt 0:00:28]} b5 {[%emt 0:00:11]} 18. Qa5 {[%emt 0:09:04]} Rab8 {[%emt 0:02:26]} 19. Rd4 {[%emt 0:03:56]} f6 {[%emt 0:25:28]} 20. exf6 {[%emt 0:01:43]} Qxf6 {[%emt 0:00:05]} 21. e3 {[%emt 0:02:58]} Kh8 {[%emt 0:02:06]} 22. Red1 {[%emt 0:02:40]} Rf8 {[%emt 0:05:44]} 23. R1d2 {[%emt 0:02:36]} Qf5 {[%emt 0:00:42]} 24. Qc3 {[%emt 0:05:42]} Qb1+ {[%emt 0:05:33]} 25. Rd1 {[%emt 0:00:26]} Qf5 {[%emt 0:00:58]} 26. Qe1 {[%emt 0:01:15]} Qf6 {[%emt 0:00:59]} 27. h4 {[%emt 0:02:08]} a5 {[%emt 0:00:40]} 28. Qe2 {[%emt 0:06:06]} b4 {[%emt 0:01:50]} 29. axb4 {[%emt 0:00:25]} axb4 {[%emt 0:00:56]} 30. Bxd5 {[%emt 0:02:49]} Bxd5 {[%emt 0:00:46]} 31. Rxd5 {[%emt 0:00:02]} c3 {[%emt 0:00:20]} 32. Rc5 {[%emt 0:06:21]} Rbd8 {[%emt 0:01:33]} 33. Rxd8 {[%emt 0:04:22]} Rxd8 {[%emt 0:00:07]} 34. bxc3 {[%emt 0:00:11]} bxc3 {[%emt 0:00:11]} 35. Qc4 {[%emt 0:01:08]} Qf8 {[%emt 0:03:38]} 36. Kg2 {[%emt 0:02:48]} Qe8 {[%emt 0:01:08]} 37. Rc7 {[%emt 0:02:00]} Qg6 {[%emt 0:01:30]} 38. Rc8 {[%emt 0:00:59]} Rxc8 {[%emt 0:00:26]} 39. Qxc8+ {[%emt 0:00:03]} Kh7 {[%emt 0:00:06]} 40. Qxc3 {[%emt 0:00:08]} Qe4+ {[%emt 0:00:06]} 41. f3 {[%emt 0:31:10]} Qb1 {[%emt 0:30:16]} 42. Qd2 {[%emt 0:00:08]} Kg8 {[%emt 0:00:42]} 43. e4 {[%emt 0:00:27]} Qa1 {[%emt 0:00:32]} 44. f4 {[%emt 0:00:26]} Qa4 {[%emt 0:00:48]} 45. Qe2 {[%emt 0:00:10]} Qd4 {[%emt 0:01:24]} 46. Kh2 {[%emt 0:00:16]} Kf8 {[%emt 0:00:30]} 47. e5 {[%emt 0:02:27]} Ke7 {[%emt 0:00:00]} 48. Qf3 {[%emt 0:00:00]} Qb2+ {[%emt 0:00:00]} 49. Kh3 {[%emt 0:00:00]} Qb1 {[%emt 0:00:00]} 50. f5 {[%emt 0:00:00]} Qb2 {[%emt 0:00:00]} 51. f6+ {[%emt 0:00:00]} gxf6 {[%emt 0:00:00]} 52. Qxf6+ {[%emt 0:00:00]} Ke8 {[%emt 0:00:00]} 53. Qe6+ {[%emt 0:00:00]} Kd8 {[%emt 0:00:00]} 54. Qd6+ {[%emt 0:00:00]} Ke8 {[%emt 0:00:00]} 55. e6 {[%emt 0:00:00]} Qf6 {[%emt 0:00:00]} 56. Qd7+ {[%emt 0:00:00]} Kf8 {[%emt 0:00:00]} 57. e7+ {[%emt 0:00:00]} Qxe7 {[%emt 0:00:00]} 58. Qxe7+ {[%emt 0:00:00]} Kxe7 {[%emt 0:00:00]} 59. g4 {[%emt 0:00:00]} Kf6 {[%emt 0:00:00]} 60. Kg3 {[%emt 0:00:00]} Ke6 {[%emt 0:00:00]} 61. Kf3 {[%emt 0:00:00]} Kf7 {[%emt 0:00:00]} 62. Ke2 {[%emt 0:00:00]} Ke6 {[%emt 0:00:00]} 63. Kd3 {[%emt 0:00:00]} Kd5 {[%emt 0:00:00]} 64. Ke3 {[%emt 0:00:00]} Ke5 {[%emt 0:00:00]} 65. Kf3 {[%emt 0:00:00]} Ke6 {[%emt 0:00:00]} 66. Ke4 {[%emt 0:00:00]} Kf6 {[%emt 0:00:00]} 67. Kd5 {[%emt 0:00:00]} 1-0

[Event "Fredericia IM 2019"]
[Site "Fredericia"]
[Date "2019.05.31"]
[Round "5.3"]
[White "Pedersen, Nicolai Kvist Brondt"]
[Black "Jacobsen, Mikkel Manosri"]
[Result "0-1"]
[ECO "A05"]
[WhiteElo "2325"]
[BlackElo "2319"]
[Annotator "ChessBase"]
[PlyCount "116"]
[EventDate "2019.05.29"]
[EventType "tourn"]
[EventCountry "DEN"]
[SourceTitle "playchess.com"]
[Source "ChessBase"]
[SourceQuality "1"]
[TimeControl "40/5400+30:1800+30"]

1. Nf3 {[%emt 0:00:00]} Nf6 {[%emt 0:00:00]} 2. c4 {[%emt 0:00:00]} e6 {[%emt 0:00:00]} 3. d4 {[%emt 0:00:00]} d5 {[%emt 0:00:00]} 4. g3 {[%emt 0:00:00]} Bb4+ {[%emt 0:00:00]} 5. Bd2 {[%emt 0:00:01]} Be7 {[%emt 0:00:00]} 6. Bg2 {[%emt 0:00:03]} O-O {[%emt 0:00:00]} 7. O-O {[%emt 0:00:04]} Nbd7 {[%emt 0:00:08]} 8. Qc2 {[%emt 0:00:34]} Ne4 {[%emt 0:00:04]} 9. Nc3 {[%emt 0:00:18]} Nxd2 {[%emt 0:00:04]} 10. Nxd2 {[%emt 0:00:08]} c6 {[%emt 0:00:04]} 11. Rfd1 {[%emt 0:00:38]} f5 {[%emt 0:00:29]} 12. e3 {[%emt 0:00:54]} g5 {[%emt 0:00:21]} 13. Ne2 {[%emt 0:05:36]} a5 {[%emt 0:05:07]} 14. Nf3 {[%emt 0:11:15]} Bd6 {[%emt 0:09:23]} 15. a3 {[%emt 0:03:15]} Qf6 {[%emt 0:04:47]} 16. Rab1 {[%emt 0:19:30]} Rb8 {[%emt 0:08:51]} 17. Qa4 {[%emt 0:09:08]} Nb6 {[%emt 0:01:55]} 18. Qxa5 {[%emt 0:00:47]} Nxc4 {[%emt 0:00:06]} 19. Qc3 {[%emt 0:01:26]} Bd7 {[%emt 0:03:45]} 20. a4 {[%emt 0:11:33]} b5 {[%emt 0:03:05]} 21. b3 {[%emt 0:08:08]} Na3 {[%emt 0:01:38]} 22. Rbc1 {[%emt 0:01:06]} bxa4 {[%emt 0:00:45]} 23. Ne5 {[%emt 0:01:23]} Bxe5 {[%emt 0:07:12]} 24. dxe5 {[%emt 0:00:02]} Qe7 {[%emt 0:00:07]} 25. bxa4 {[%emt 0:00:31]} Nc4 {[%emt 0:00:13]} 26. Rb1 {[%emt 0:07:39]} c5 {[%emt 0:03:17]} 27. a5 {[%emt 0:06:11]} Bc6 {[%emt 0:02:04]} 28. a6 {[%emt 0:01:58]} Rxb1 {[%emt 0:01:36]} 29. Rxb1 {[%emt 0:00:01]} Ra8 {[%emt 0:00:25]} 30. e4 {[%emt 0:03:05]} fxe4 {[%emt 0:03:25]} 31. Bxe4 {[%emt 0:00:20]} Qc7 {[%emt 0:00:55]} 32. f4 {[%emt 0:04:58]} Rxa6 {[%emt 0:05:48]} 33. Bd3 {[%emt 0:00:11]} Ra4 {[%emt 0:04:46]} 34. Qc1 {[%emt 0:02:32]} Na3 {[%emt 0:01:58]} 35. Ra1 {[%emt 0:00:52]} Qa7 {[%emt 0:00:17]} 36. Bb1 {[%emt 0:03:04]} c4+ {[%emt 0:08:35]} 37. Kf1 {[%emt 0:00:06]} Qc5 {[%emt 0:00:04]} 38. f5 {[%emt 0:00:39]} h6 {[%emt 0:00:51]} 39. Qb2 {[%emt 0:00:46]} Rb4 {[%emt 0:02:50]} 40. Qd4 {[%emt 0:00:35]} Qxd4 {[%emt 0:01:54]} 41. Nxd4 {[%emt 0:30:02]} Rxb1+ {[%emt 0:30:05]} 42. Rxb1 {[%emt 0:00:05]} Nxb1 {[%emt 0:00:03]} 43. Nxc6 {[%emt 0:00:19]} exf5 {[%emt 0:00:28]} 44. Ke2 {[%emt 0:00:00]} Nc3+ {[%emt 0:00:00]} 45. Ke3 {[%emt 0:00:00]} Nb5 {[%emt 0:00:00]} 46. Ne7+ {[%emt 0:00:00]} Kf7 {[%emt 0:00:00]} 47. Nxf5 {[%emt 0:00:00]} h5 {[%emt 0:00:00]} 48. h4 {[%emt 0:00:00]} gxh4 {[%emt 0:00:00]} 49. gxh4 {[%emt 0:00:00]} Ke6 {[%emt 0:00:00]} 50. Ng7+ {[%emt 0:00:00]} Kxe5 {[%emt 0:00:00]} 51. Nxh5 {[%emt 0:00:00]} d4+ {[%emt 0:00:00]} 52. Kd2 {[%emt 0:00:00]} Nd6 {[%emt 0:00:00]} 53. Ng7 {[%emt 0:01:45]} Ne4+ {[%emt 0:00:00]} 54. Kd1 {[%emt 0:02:51]} d3 {[%emt 0:00:00]} 55. h5 {[%emt 0:00:45]} c3 {[%emt 0:00:00]} 56. h6 {[%emt 0:00:22]} Nf2+ {[%emt 0:00:00]} 57. Ke1 {[%emt 0:00:08]} d2+ {[%emt 0:00:00]} 58. Kxf2 {[%emt 0:00:06]} d1=Q {[%emt 0:00:00]} 0-1

[Event "Fredericia IM 2019"]
[Site "Fredericia"]
[Date "2019.05.31"]
[Round "5.4"]
[White "Easwaralingam, Adesh"]
[Black "Fries-Nielsen, Niels Jorgen"]
[Result "1/2-1/2"]
[ECO "C42"]
[WhiteElo "2123"]
[BlackElo "2328"]
[Annotator "ChessBase"]
[PlyCount "27"]
[EventDate "2019.05.29"]
[EventType "tourn"]
[EventCountry "DEN"]
[SourceTitle "playchess.com"]
[Source "ChessBase"]
[SourceQuality "1"]
[TimeControl "40/5400+30:1800+30"]

1. e4 {[%emt 0:00:00]} e5 {[%emt 0:00:12]} 2. Nf3 {[%emt 0:00:00]} Nf6 {[%emt 0:00:27]} 3. Nxe5 {[%emt 0:00:00]} d6 {[%emt 0:00:10]} 4. Nf3 {[%emt 0:00:00]} Nxe4 {[%emt 0:00:04]} 5. Nc3 {[%emt 0:00:13]} Nf6 {[%emt 0:00:22]} 6. d4 {[%emt 0:00:27]} d5 {[%emt 0:00:15]} 7. Bg5 {[%emt 0:00:24]} c6 {[%emt 0:00:12]} 8. Be2 {[%emt 0:00:31]} Be7 {[%emt 0:00:29]} 9. Bf4 {[%emt 0:00:13]} Nh5 {[%emt 0:00:38]} 10. Bd2 {[%emt 0:00:36]} Nf6 {[%emt 0:00:19]} 11. Bf4 {[%emt 0:00:07]} Nh5 {[%emt 0:00:04]} 12. Bd2 {[%emt 0:00:06]} Nf6 {[%emt 0:00:02]} 13. Bf4 {[%emt 0:00:06]} Nh5 {[%emt 0:00:03]} 14. Bd2 {[%emt 0:00:09]} 1/2-1/2

[Event "Fredericia IM 2019"]
[Site "Fredericia"]
[Date "2019.05.31"]
[Round "5.5"]
[White "Antonsen, Mikkel"]
[Black "Ahlander, Bjorn"]
[Result "1/2-1/2"]
[ECO "E10"]
[WhiteElo "2423"]
[BlackElo "2421"]
[Annotator "ChessBase"]
[PlyCount "27"]
[EventDate "2019.05.29"]
[EventType "tourn"]
[EventCountry "DEN"]
[SourceTitle "playchess.com"]
[Source "ChessBase"]
[SourceQuality "1"]
[TimeControl "40/5400+30:1800+30"]

1. d4 {[%emt 0:00:00]} Nf6 {[%emt 0:00:00]} 2. c4 {[%emt 0:00:03]} e6 {[%emt 0:00:00]} 3. Nf3 {[%emt 0:00:58]} d5 {[%emt 0:00:03]} 4. g3 {[%emt 0:00:04]} Bb4+ {[%emt 0:00:38]} 5. Bd2 {[%emt 0:00:06]} Be7 {[%emt 0:00:07]} 6. Bg2 {[%emt 0:00:04]} O-O {[%emt 0:00:12]} 7. O-O {[%emt 0:00:11]} Nbd7 {[%emt 0:00:16]} 8. Qc2 {[%emt 0:00:33]} c6 {[%emt 0:00:09]} 9. Rd1 {[%emt 0:00:12]} b6 {[%emt 0:00:25]} 10. Bf4 {[%emt 0:00:17]} Nh5 {[%emt 0:01:53]} 11. Be3 {[%emt 0:03:01]} Nhf6 {[%emt 0:00:18]} 12. Bf4 {[%emt 0:00:35]} Nh5 {[%emt 0:00:07]} 13. Be3 {[%emt 0:00:03]} Nhf6 {[%emt 0:00:06]} 14. Bf4 {[%emt 0:00:44]} 1/2-1/2

[Event "Fredericia IM 2019"]
[Site "Fredericia"]
[Date "2019.06.01"]
[Round "6.1"]
[White "Vasli, Aref"]
[Black "Antonsen, Mikkel"]
[Result "1/2-1/2"]
[ECO "B34"]
[WhiteElo "2346"]
[BlackElo "2423"]
[Annotator "ChessBase"]
[PlyCount "44"]
[EventDate "2019.05.29"]
[EventType "tourn"]
[EventCountry "DEN"]
[SourceTitle "playchess.com"]
[Source "ChessBase"]
[SourceQuality "1"]
[TimeControl "40/5400+30:1800+30"]

1. e4 c5 {[%emt 0:00:00]} 2. Nf3 {[%emt 0:00:00]} Nc6 {[%emt 0:00:00]} 3. d4 {[%emt 0:00:00]} cxd4 {[%emt 0:00:00]} 4. Nxd4 {[%emt 0:00:04]} Nf6 {[%emt 0:00:01]} 5. Nc3 {[%emt 0:00:12]} e5 {[%emt 0:00:06]} 6. Ndb5 {[%emt 0:00:05]} d6 {[%emt 0:00:04]} 7. a4 {[%emt 0:00:07]} a6 {[%emt 0:01:35]} 8. Na3 {[%emt 0:00:08]} Bg4 {[%emt 0:00:04]} 9. Qd3 {[%emt 0:00:09]} Be6 {[%emt 0:04:20]} 10. Bg5 {[%emt 0:00:31]} Be7 {[%emt 0:00:08]} 11. Bxf6 {[%emt 0:00:16]} Bxf6 {[%emt 0:00:03]} 12. Nd5 {[%emt 0:00:12]} Bg5 {[%emt 0:00:16]} 13. Nc4 {[%emt 0:07:39]} O-O {[%emt 0:01:43]} 14. a5 {[%emt 0:05:45]} f5 {[%emt 0:23:31]} 15. c3 {[%emt 0:22:15]} fxe4 {[%emt 0:04:18]} 16. Qxe4 {[%emt 0:02:02]} Bf5 {[%emt 0:02:03]} 17. Qf3 {[%emt 0:03:08]} Kh8 {[%emt 0:04:13]} 18. Ncb6 {[%emt 0:03:49]} Rb8 {[%emt 0:01:10]} 19. Be2 {[%emt 0:01:05]} e4 {[%emt 0:01:34]} 20. Qg3 {[%emt 0:00:20]} Bh4 {[%emt 0:02:18]} 21. Qe3 {[%emt 0:00:16]} Bg5 {[%emt 0:00:14]} 22. Qg3 {[%emt 0:00:18]} Bh4 {[%emt 0:07:20]} 1/2-1/2

[Event "Fredericia IM 2019"]
[Site "Fredericia"]
[Date "2019.06.01"]
[Round "6.2"]
[White "Fries-Nielsen, Niels Jorgen"]
[Black "Sorensen, Hampus"]
[Result "1/2-1/2"]
[ECO "C26"]
[WhiteElo "2328"]
[BlackElo "2343"]
[Annotator "ChessBase"]
[PlyCount "52"]
[EventDate "2019.05.29"]
[EventType "tourn"]
[EventCountry "DEN"]
[SourceTitle "playchess.com"]
[Source "ChessBase"]
[SourceQuality "1"]
[TimeControl "40/5400+30:1800+30"]

1. e4 {[%emt 0:01:50]} e5 {[%emt 0:00:11]} 2. Nc3 {[%emt 0:00:41]} Nf6 {[%emt 0:00:48]} 3. d3 {[%emt 0:12:25]} Bc5 {[%emt 0:15:55]} 4. h3 {[%emt 0:10:09]} Nc6 {[%emt 0:03:09]} 5. Nf3 {[%emt 0:01:22]} d6 {[%emt 0:04:44]} 6. Na4 {[%emt 0:04:29]} Bb6 {[%emt 0:00:37]} 7. Nxb6 {[%emt 0:01:08]} axb6 {[%emt 0:00:03]} 8. c4 {[%emt 0:03:59]} Ne7 {[%emt 0:04:18]} 9. g3 {[%emt 0:02:57]} c5 {[%emt 0:01:57]} 10. Bg2 {[%emt 0:01:19]} O-O {[%emt 0:02:20]} 11. O-O {[%emt 0:01:12]} Ng6 {[%emt 0:07:10]} 12. Bg5 {[%emt 0:06:34]} h6 {[%emt 0:00:55]} 13. Bd2 {[%emt 0:00:02]} Ne8 {[%emt 0:01:06]} 14. Nh2 {[%emt 0:04:50]} Nc7 {[%emt 0:08:22]} 15. a4 {[%emt 0:05:05]} Rb8 {[%emt 0:01:50]} 16. Qh5 {[%emt 0:03:10]} Qe8 {[%emt 0:04:12]} 17. f4 {[%emt 0:04:27]} exf4 {[%emt 0:02:31]} 18. gxf4 {[%emt 0:00:32]} f5 {[%emt 0:01:28]} 19. Rae1 {[%emt 0:00:52]} Qf7 {[%emt 0:03:52]} 20. e5 {[%emt 0:02:16]} dxe5 {[%emt 0:05:26]} 21. fxe5 {[%emt 0:00:41]} Be6 {[%emt 0:01:02]} 22. Rf3 {[%emt 0:07:32]} Ne7 {[%emt 0:04:55]} 23. Qh4 {[%emt 0:00:53]} Ng6 {[%emt 0:01:27]} 24. Qh5 {[%emt 0:00:05]} Ne7 {[%emt 0:04:31]} 25. Qh4 {[%emt 0:00:02]} Ng6 {[%emt 0:06:20]} 26. Qh5 {[%emt 0:00:05]} Ne7 {[%emt 0:00:46]} 1/2-1/2